bitfinex/quotes_BTCUSD_20241222
["timestamp","ask_amount","ask_price","bid_price","bid_amount"]
[1734868084996,0.61942887,97271.0,97270.0,8.58e-05]
[1734868086560,0.1549142,97270.0,97266.0,8.57e-05]
[1734868086709,0.2562226,97270.0,97266.0,0.00013988]
[1734868087353,0.01928912,97269.0,97266.0,0.00013988]
[1734868087972,0.01928912,97268.0,97266.0,0.00013988]
[1734868088375,0.40070435,97267.0,97266.0,0.00013988]
[1734868088524,0.399533,97267.0,97266.0,0.00013988]
[1734868089600,0.69490389,97267.0,97266.0,0.00013988]
[1734868089719,0.69790389,97267.0,97266.0,0.00013988]
[1734868090936,0.70090389,97267.0,97266.0,0.00013988]
[1734868091655,0.51577772,97267.0,97266.0,0.00013988]
[1734868092762,0.17411777,97267.0,97266.0,0.00013988]
[1734868092972,0.02411777,97267.0,97266.0,0.00013988]
[1734868093977,0.51577772,97267.0,97266.0,0.00013988]
[1734868094207,0.52624525,97267.0,97266.0,0.07753988]
[1734868095239,0.52624525,97267.0,97266.0,0.00013988]
[1734868095459,0.75766048,97267.0,97266.0,0.00013988]
[1734868096708,0.52624525,97267.0,97266.0,0.00013988]
[1734868098820,0.75771019,97267.0,97266.0,0.00013988]
[1734868099969,0.52624525,97267.0,97266.0,0.00013988]
[1734868100917,0.0345853,97267.0,97266.0,0.00013988]
[1734868102138,0.52624525,97267.0,97266.0,0.00013988]
[1734868102870,0.1845853,97267.0,97266.0,0.00013988]
[1734868104153,0.52624525,97267.0,97266.0,0.00013988]
[1734868107343,0.52641665,97267.0,97266.0,0.00013988]
[1734868109792,0.62772505,97267.0,97266.0,0.00013988]
[1734868112171,0.9053348,97267.0,97266.0,0.00013988]
[1734868113111,0.62772505,97267.0,97266.0,0.00013988]
[1734868117898,0.65072505,97267.0,97266.0,0.00013988]
[1734868118113,0.65563925,97267.0,97266.0,0.00013988]
[1734868122267,0.65563925,97267.0,97248.0,0.1]
[1734868122474,0.2513084,97266.0,97249.0,0.00844388]
[1734868122687,0.26942617,97266.0,97249.0,0.00844388]
[1734868123119,0.01811777,97265.0,97249.0,0.00844388]
[1734868123428,0.15,97263.0,97249.0,0.00844388]
[1734868123626,0.1013084,97262.0,97249.0,0.00844388]
[1734868123829,0.13878596,97251.0,97248.0,0.1]
[1734868124184,0.01811777,97250.0,97247.0,0.0788]
[1734868124410,0.01811777,97250.0,97248.0,0.1]
[1734868124583,0.01811777,97249.0,97248.0,0.1]
[1734868124987,0.11063465,97249.0,97248.0,0.1]
[1734868125591,0.11063465,97249.0,97248.0,0.1114507]
[1734868125792,0.01811777,97249.0,97248.0,0.1084507]
[1734868126256,0.01811777,97249.0,97248.0,0.1114507]
[1734868127846,0.01811777,97249.0,97248.0,0.1084507]
[1734868128430,0.01911777,97249.0,97248.0,0.1084507]
[1734868128937,0.01811777,97249.0,97248.0,0.1084507]
[1734868129489,0.01911777,97249.0,97248.0,0.1084507]
[1734868130634,0.01911777,97249.0,97248.0,0.1085364]
[1734868134412,0.001,97249.0,97248.0,0.1085364]
[1734868134614,0.02027616,97249.0,97248.0,0.1085364]
[1734868137719,0.02027616,97249.0,97248.0,0.1000857]
[1734868137890,0.02027616,97249.0,97248.0,0.1063065]
[1734868140745,0.02027616,97249.0,97248.0,0.1876065]
[1734868146335,0.02027616,97249.0,97248.0,0.1063065]
[1734868148478,0.02027616,97249.0,97248.0,0.0063065]
[1734868148998,0.02027616,97249.0,97248.0,0.1063065]
[1734868152777,0.15909878,97249.0,97248.0,0.1063065]
[1734868153126,0.15909878,97249.0,97248.0,0.1000857]
[1734868153742,0.02027616,97249.0,97248.0,0.1000857]
[1734868154192,0.02027616,97249.0,97248.0,0.10636329]
[1734868155358,0.02027616,97249.0,97248.0,0.1000857]
[1734868155712,0.02044756,97249.0,97248.0,0.1000857]
[1734868156323,0.02044756,97249.0,97248.0,0.10636608]
[1734868156934,0.15929572,97249.0,97248.0,0.10636608]
[1734868157125,0.15929572,97249.0,97248.0,0.1000857]
[1734868157747,0.02044756,97249.0,97248.0,0.1000857]
[1734868158172,0.02044756,97249.0,97248.0,0.10636914]
[1734868159315,0.02044756,97249.0,97248.0,0.1000857]
[1734868160448,0.02044756,97249.0,97248.0,0.10636914]
[1734868161173,0.36225637,97249.0,97248.0,0.10636914]
[1734868161561,0.36225637,97249.0,97248.0,0.1000857]
[1734868162405,0.54730432,97249.0,97248.0,0.1000857]
[1734868163565,0.36225637,97249.0,97248.0,0.1000857]
[1734868163769,0.51225637,97249.0,97248.0,8.57e-05]
[1734868164522,0.17044756,97249.0,97248.0,8.57e-05]
[1734868164999,0.02044756,97249.0,97248.0,8.57e-05]
[1734868165700,0.59356631,97249.0,97248.0,8.57e-05]
[1734868165930,0.74356631,97249.0,97248.0,8.57e-05]
[1734868166867,0.84487471,97249.0,97248.0,8.57e-05]
[1734868167109,0.61356477,97249.0,97248.0,8.57e-05]
[1734868171195,0.81430416,97249.0,97248.0,8.57e-05]
[1734868173594,0.81330416,97249.0,97248.0,8.57e-05]
[1734868174419,0.81630416,97249.0,97248.0,8.57e-05]
[1734868174629,0.81730416,97249.0,97248.0,8.57e-05]
[1734868175173,0.81630416,97249.0,97248.0,8.57e-05]
[1734868175318,0.82030416,97249.0,97248.0,8.57e-05]
[1734868177948,5.91640416,97249.0,97248.0,8.57e-05]
[1734868179494,6.39205504,97249.0,97248.0,8.57e-05]
[1734868179973,0.09793939,97240.0,97239.0,8.57e-05]
[1734868180173,5.42224779,97240.0,97239.0,8.57e-05]
[1734868180516,4.18752395,97240.0,97239.0,8.57e-05]
[1734868180715,4.27062395,97240.0,97239.0,8.57e-05]
[1734868181135,4.61643276,97240.0,97239.0,8.57e-05]
[1734868181757,4.61443276,97240.0,97239.0,8.57e-05]
[1734868182208,0.81843276,97240.0,97239.0,8.57e-05]
[1734868182585,0.81643276,97240.0,97239.0,8.57e-05]
[1734868182929,5.26243276,97240.0,97239.0,8.57e-05]
[1734868183168,5.26543276,97240.0,97239.0,8.57e-05]
[1734868183784,5.26243276,97240.0,97239.0,8.57e-05]
[1734868183925,5.26543276,97240.0,97239.0,8.57e-05]
[1734868184130,5.26743276,97240.0,97239.0,8.57e-05]
[1734868184331,5.26443276,97240.0,97239.0,8.57e-05]
[1734868184657,5.26643276,97240.0,97239.0,8.57e-05]
[1734868185309,5.2471566,97240.0,97239.0,8.57e-05]
[1734868185467,5.25746655,97240.0,97239.0,8.57e-05]
[1734868186532,5.27671822,97240.0,97239.0,8.57e-05]
[1734868186713,5.25746655,97240.0,97239.0,8.57e-05]
[1734868186859,5.29704819,97240.0,97239.0,8.57e-05]
[1734868187424,3.86837089,97240.0,97239.0,8.57e-05]
[1734868187620,0.52537089,97240.0,97239.0,0.0795857]
[1734868187851,0.37537089,97240.0,97239.0,0.0795857]
[1734868188022,0.36506094,97240.0,97239.0,0.0795857]
[1734868188225,0.36506094,97240.0,97239.0,0.1880257]
[1734868188379,0.36306094,97240.0,97239.0,0.23585399]
[1734868188590,0.36106094,97240.0,97239.0,0.2348257]
[1734868188925,0.36506094,97240.0,97239.0,0.2348257]
[1734868189271,0.02125213,97240.0,97239.0,0.2348257]
[1734868190831,0.01925213,97240.0,97239.0,0.2348257]
[1734868191308,0.01925213,97240.0,97239.0,0.2398257]
[1734868191864,0.01925213,97240.0,97239.0,0.2378257]
[1734868192164,0.01925213,97240.0,97239.0,0.2358257]
[1734868192417,0.01925213,97240.0,97239.0,0.2378257]
[1734868193377,0.01925213,97240.0,97239.0,0.2368257]
[1734868193814,0.01925213,97240.0,97239.0,0.2348257]
[1734868193964,0.01925213,97240.0,97239.0,0.2378257]
[1734868195650,0.01925213,97240.0,97239.0,0.2348257]
[1734868195974,0.01925213,97247.0,97246.0,0.00206061]
[1734868196380,0.01925213,97247.0,97246.0,0.18156061]
[1734868196935,0.01925213,97247.0,97246.0,0.18789266]
[1734868197519,0.01942353,97248.0,97247.0,0.00206061]
[1734868197842,0.01942353,97248.0,97247.0,0.10941991]
[1734868198054,0.0001714,97248.0,97247.0,0.18591991]
[1734868198884,0.0011714,97248.0,97247.0,0.23221991]
[1734868199033,0.0011714,97248.0,97247.0,0.23119169]
[1734868200077,0.0001714,97248.0,97247.0,0.23119169]
[1734868200296,0.0001714,97248.0,97247.0,0.23219169]
[1734868200663,0.0001714,97248.0,97247.0,0.23119169]
[1734868200867,0.0001714,97248.0,97247.0,0.23219169]
[1734868201207,0.0001714,97248.0,97247.0,0.23119169]
[1734868201589,0.0001714,97248.0,97247.0,0.23219169]
[1734868201998,0.0001714,97248.0,97247.0,0.33350009]
[1734868206667,0.0001714,97248.0,97247.0,0.33250009]
[1734868206978,0.0001714,97248.0,97247.0,0.33650009]
[1734868213979,0.0001714,97248.0,97247.0,0.33550009]
[1734868214177,0.0001714,97248.0,97247.0,0.33350009]
[1734868215057,0.0001714,97248.0,97247.0,0.33750009]
[1734868215470,0.0001714,97248.0,97247.0,0.33758579]
[1734868216170,0.0001714,97248.0,97247.0,0.33658579]
[1734868216375,0.0001714,97248.0,97247.0,0.33258579]
[1734868216590,0.0001714,97248.0,97247.0,0.33658579]
[1734868218527,0.0001714,97249.0,97248.0,0.42736061]
[1734868218672,0.0001714,97267.0,97264.0,0.10206061]
[1734868218876,0.00022549,97265.0,97264.0,0.32969678]
[1734868219090,0.00022549,97265.0,97264.0,0.33490413]
[1734868220211,0.00022549,97265.0,97264.0,0.33890413]
[1734868220564,0.00022549,97265.0,97264.0,0.33990413]
[1734868221182,0.00022549,97265.0,97264.0,0.33490413]
[1734868221591,0.00022549,97265.0,97264.0,0.33890413]
[1734868222372,0.00022549,97265.0,97264.0,0.34790413]
[1734868222816,0.00022549,97265.0,97264.0,0.33490413]
[1734868222989,0.00022549,97265.0,97264.0,0.34390413]
[1734868223193,0.00022549,97265.0,97264.0,0.34790413]
[1734868223817,0.00022549,97265.0,97264.0,0.34390413]
[1734868224226,0.00022549,97265.0,97264.0,0.34790413]
[1734868224829,0.00022549,97265.0,97264.0,0.34390413]
[1734868226100,0.00022549,97265.0,97264.0,0.34790413]
[1734868230291,0.00022549,97265.0,97264.0,0.34390413]
[1734868230602,0.00022549,97265.0,97264.0,0.34790413]
[1734868230802,0.00022549,97265.0,97264.0,0.33890413]
[1734868231165,0.00022549,97265.0,97264.0,0.34790413]
[1734868231400,0.00022549,97265.0,97264.0,0.34390413]
[1734868231575,0.00022549,97265.0,97264.0,0.33490413]
[1734868231951,0.00022549,97265.0,97264.0,0.34132777]
[1734868232638,0.00022549,97265.0,97264.0,0.34532777]
[1734868232849,0.00022549,97265.0,97264.0,0.35432777]
[1734868233166,0.00022549,97265.0,97264.0,0.34132777]
[1734868233369,0.00022549,97265.0,97264.0,0.35032777]
[1734868233685,0.00022549,97265.0,97264.0,0.34532777]
[1734868234088,0.00022549,97265.0,97264.0,0.35432777]
[1734868234270,0.00022549,97265.0,97264.0,0.85538777]
[1734868234671,0.00022549,97265.0,97264.0,0.86438777]
[1734868235059,0.00022549,97265.0,97264.0,0.86838777]
[1734868235461,0.00022549,97265.0,97264.0,0.81978777]
[1734868235856,0.00022549,97265.0,97264.0,0.81078777]
[1734868236057,0.00022549,97265.0,97264.0,0.73202716]
[1734868236261,0.00022549,97265.0,97264.0,0.64308777]
[1734868236561,0.00022549,97265.0,97264.0,0.63008777]
[1734868236771,0.00022549,97265.0,97264.0,0.74008777]
[1734868237213,0.00022549,97265.0,97264.0,0.73008777]
[1734868237448,0.00022549,97265.0,97264.0,0.73608777]
[1734868237681,0.00022549,97265.0,97264.0,0.73808777]
[1734868237952,0.00022549,97265.0,97264.0,0.63208777]
[1734868238160,0.00022549,97265.0,97264.0,0.63008777]
[1734868238360,0.00022549,97265.0,97264.0,0.63208777]
[1734868239772,0.00022549,97265.0,97264.0,0.63808777]
[1734868242511,0.00022549,97265.0,97264.0,0.63208777]
[1734868242833,0.00022549,97265.0,97264.0,0.63608777]
[1734868243035,0.00022549,97265.0,97264.0,0.63008777]
[1734868243439,0.00022549,97265.0,97264.0,0.63608777]
[1734868243696,0.00022549,97265.0,97264.0,0.63808777]
[1734868244191,0.00022549,97265.0,97264.0,0.63608777]
[1734868244396,0.00022549,97265.0,97264.0,0.81278777]
[1734868244545,0.00022549,97265.0,97264.0,0.81478777]
[1734868245573,0.00022549,97265.0,97264.0,0.80878777]
[1734868245982,0.00022549,97265.0,97264.0,0.81578777]
[1734868246177,0.00022549,97265.0,97264.0,0.80878777]
[1734868246512,0.00022549,97265.0,97264.0,0.81578777]
[1734868246956,0.00022549,97265.0,97264.0,0.80878777]
[1734868247131,0.00022549,97265.0,97264.0,0.81478777]
[1734868247366,0.00022549,97265.0,97264.0,0.81278777]
[1734868247939,0.00022549,97265.0,97264.0,0.81478777]
[1734868248474,0.00022549,97265.0,97264.0,0.81278777]
[1734868248881,0.00022549,97265.0,97264.0,0.81478777]
[1734868250778,0.00022549,97265.0,97264.0,0.73808777]
[1734868272183,0.00022549,97265.0,97264.0,0.83004541]
[1734868273838,0.00022549,97265.0,97264.0,0.73808777]
[1734868275249,0.00022549,97265.0,97264.0,0.83004541]
[1734868276338,0.00022549,97265.0,97264.0,0.90534541]
[1734868276584,0.00022549,97265.0,97264.0,0.81338777]
[1734868277333,0.00022549,97265.0,97264.0,0.95132424]
[1734868278707,0.00022549,97265.0,97264.0,0.81338777]
[1734868279826,0.00022549,97265.0,97264.0,0.73808777]
[1734868280809,0.00022549,97265.0,97264.0,0.63471876]
[1734868281018,0.00022549,97265.0,97264.0,0.63677937]
[1734868281618,0.00022549,97265.0,97264.0,0.53677937]
[1734868281999,0.03108655,97265.0,97264.0,0.53677937]
[1734868282200,0.03108655,97265.0,97264.0,0.53471876]
[1734868282409,0.11408655,97265.0,97264.0,0.53471876]
[1734868282616,0.16108655,97265.0,97264.0,0.53471876]
[1734868283188,0.16108655,97265.0,97264.0,0.53271876]
[1734868283602,0.16108655,97265.0,97264.0,0.52871876]
[1734868283806,0.16108655,97265.0,97264.0,0.53471876]
[1734868284188,0.16108655,97265.0,97264.0,0.53271876]
[1734868284344,0.16108655,97265.0,97264.0,0.63471876]
[1734868284766,0.16108655,97265.0,97264.0,0.53471876]
[1734868285248,0.07808655,97265.0,97264.0,0.53471876]
[1734868285446,0.07808655,97265.0,97264.0,0.52248364]
[1734868285689,0.07808655,97265.0,97264.0,0.52873454]
[1734868285891,0.07908655,97265.0,97264.0,0.52673454]
[1734868286062,0.07808655,97265.0,97264.0,0.52673454]
[1734868286270,0.08008655,97265.0,97264.0,0.62673454]
[1734868286463,0.08108655,97265.0,97264.0,0.62673454]
[1734868286668,0.07808655,97265.0,97264.0,0.62673454]
[1734868287091,0.07908655,97265.0,97264.0,0.62673454]
[1734868287486,0.08108655,97265.0,97264.0,0.62673454]
[1734868288388,0.08108655,97265.0,97264.0,0.6235659]
[1734868288624,0.08108655,97265.0,97264.0,0.62673453]
[1734868288928,0.08008655,97265.0,97264.0,0.6235659]
[1734868289228,0.07908655,97265.0,97264.0,0.6235659]
[1734868289373,0.08008655,97265.0,97264.0,0.62673453]
[1734868289586,0.08008655,97265.0,97264.0,0.6235659]
[1734868289959,0.07808655,97265.0,97264.0,0.6235659]
[1734868290079,0.08008655,97265.0,97264.0,0.62673453]
[1734868290286,0.08108655,97265.0,97264.0,0.62673453]
[1734868290714,0.07808655,97265.0,97264.0,0.62673453]
[1734868290888,0.08008655,97265.0,97264.0,0.52673453]
[1734868291533,0.03308655,97265.0,97264.0,0.52673453]
[1734868292112,0.03408655,97265.0,97264.0,0.52673453]
[1734868292372,0.03108655,97265.0,97264.0,0.52673453]
[1734868292727,0.03408655,97265.0,97264.0,0.52673453]
[1734868293047,0.03308655,97265.0,97264.0,0.52673453]
[1734868293296,0.03208655,97265.0,97264.0,0.52673453]
[1734868293463,0.03308655,97265.0,97264.0,0.52673453]
[1734868293870,0.03408655,97265.0,97264.0,0.52673453]
[1734868294087,0.03208655,97265.0,97264.0,0.52673453]
[1734868294444,0.03408655,97265.0,97264.0,0.52673453]
[1734868295049,0.03308655,97265.0,97264.0,0.52673453]
[1734868295251,0.03408655,97265.0,97264.0,0.52673453]
[1734868295630,0.03108655,97265.0,97264.0,0.52673453]
[1734868295838,0.03208655,97265.0,97264.0,0.52673453]
[1734868296038,0.03408655,97265.0,97264.0,0.52673453]
[1734868296527,0.03208655,97265.0,97264.0,0.52673453]
[1734868296742,0.26098655,97265.0,97264.0,0.52673453]
[1734868296937,0.53413434,97265.0,97264.0,0.52673453]
[1734868297159,0.53513434,97265.0,97264.0,0.52673453]
[1734868297561,0.53313434,97265.0,97264.0,0.52673453]
[1734868297763,0.53513434,97265.0,97264.0,0.52673453]
[1734868298285,0.87514771,97265.0,97264.0,0.52673453]
[1734868298865,0.77720832,97265.0,97264.0,0.52673453]
[1734868299135,0.77820832,97265.0,97264.0,0.52673453]
[1734868299369,0.77620832,97265.0,97264.0,0.52673453]
[1734868299520,0.98334192,97265.0,97264.0,0.52673453]
[1734868299747,0.98334192,97265.0,97264.0,0.51406]
[1734868299947,0.98334192,97265.0,97264.0,0.52461312]
[1734868300127,0.98134192,97265.0,97264.0,0.52461312]
[1734868300571,0.79864326,97265.0,97264.0,0.52461312]
[1734868301833,0.45762989,97265.0,97264.0,0.52461312]
[1734868302385,0.55556928,97265.0,97264.0,0.52461312]
[1734868302905,0.69402382,97265.0,97264.0,0.52461312]
[1734868303743,1.08095,97265.0,97264.0,0.52461312]
[1734868305537,1.07995,97265.0,97264.0,0.52461312]
[1734868305746,0.89425134,97265.0,97264.0,0.52561312]
[1734868306078,0.89325134,97265.0,97264.0,0.52461312]
[1734868306487,0.89425134,97265.0,97264.0,0.52561312]
[1734868306727,0.89925134,97265.0,97264.0,0.52461312]
[1734868306902,0.55856928,97265.0,97264.0,0.52561312]
[1734868307112,0.55456928,97265.0,97264.0,0.52561312]
[1734868307303,4.89056928,97265.0,97264.0,0.52461312]
[1734868307524,4.89556928,97265.0,97264.0,0.51406]
[1734868307685,4.98792265,97265.0,97264.0,0.51406]
[1734868308149,4.98792265,97265.0,97264.0,0.48241]
[1734868308506,4.99292265,97265.0,97264.0,0.43707223]
[1734868308707,5.19501342,97265.0,97264.0,0.43707223]
[1734868308911,5.18401342,97265.0,97264.0,0.43607223]
[1734868309276,0.023,97250.0,97239.0,8.57e-05]
[1734868309561,0.2743084,97250.0,97239.0,8.57e-05]
[1734868310356,0.2763084,97250.0,97239.0,8.57e-05]
[1734868311488,0.002,97250.0,97239.0,8.57e-05]
[1734868312549,0.004,97250.0,97239.0,8.57e-05]
[1734868314058,0.01414966,97250.0,97239.0,8.57e-05]
[1734868315754,0.01214966,97250.0,97239.0,8.57e-05]
[1734868316951,0.01014966,97250.0,97239.0,8.57e-05]
[1734868317157,0.004,97250.0,97239.0,8.57e-05]
[1734868317332,0.002,97250.0,97239.0,8.57e-05]
[1734868318133,0.004,97250.0,97239.0,8.57e-05]
[1734868318502,0.2783084,97250.0,97239.0,8.57e-05]
[1734868319119,0.2763084,97250.0,97239.0,8.57e-05]
[1734868319468,0.2783084,97250.0,97239.0,8.57e-05]
[1734868319662,0.2763084,97250.0,97239.0,8.57e-05]
[1734868319922,0.2783084,97250.0,97239.0,8.57e-05]
[1734868320152,0.2763084,97250.0,97239.0,8.57e-05]
[1734868320326,0.2783084,97250.0,97239.0,8.57e-05]
[1734868323322,0.28852341,97250.0,97239.0,8.57e-05]
[1734868324567,0.28652341,97250.0,97239.0,8.57e-05]
[1734868326481,0.28852341,97250.0,97239.0,8.57e-05]
[1734868326803,0.28652341,97250.0,97239.0,8.57e-05]
[1734868327179,0.28852341,97250.0,97239.0,8.57e-05]
[1734868333076,0.38072218,97250.0,97239.0,8.57e-05]
[1734868335283,0.40135415,97250.0,97239.0,8.57e-05]
[1734868335531,0.30915538,97250.0,97239.0,8.57e-05]
[1734868335846,0.30915538,97250.0,97240.0,0.0768]
[1734868337364,0.40135415,97250.0,97240.0,0.0768]
[1734868338384,0.30915538,97250.0,97240.0,0.0768]
[1734868340210,0.30915538,97250.0,97239.0,8.57e-05]
[1734868340421,0.44745353,97250.0,97239.0,8.57e-05]
[1734868340624,0.52715353,97250.0,97239.0,8.57e-05]
[1734868341376,0.73024737,97250.0,97239.0,8.57e-05]
[1734868342926,0.9611207,97250.0,97239.0,8.57e-05]
[1734868343965,0.73024737,97250.0,97239.0,8.57e-05]
[1734868349188,0.65054737,97250.0,97239.0,8.57e-05]
[1734868352660,0.65054737,97250.0,97241.0,0.0773]
[1734868352839,0.65054737,97250.0,97239.0,8.57e-05]
[1734868357981,0.6299154,97250.0,97239.0,8.57e-05]
[1734868377263,0.90725296,97250.0,97239.0,8.57e-05]
[1734868378364,0.6299154,97250.0,97239.0,8.57e-05]
[1734868381009,0.90785378,97250.0,97239.0,8.57e-05]
[1734868381945,0.6299154,97250.0,97239.0,8.57e-05]
[1734868384436,0.90786033,97250.0,97239.0,8.57e-05]
[1734868386685,0.6299154,97250.0,97239.0,8.57e-05]
[1734868391925,0.7057154,97250.0,97239.0,8.57e-05]
[1734868392343,0.80365479,97250.0,97239.0,8.57e-05]
[1734868393684,0.80165479,97250.0,97239.0,8.57e-05]
[1734868393936,0.79965479,97250.0,97239.0,8.57e-05]
[1734868394177,0.80565479,97250.0,97239.0,8.57e-05]
[1734868394493,0.80265479,97250.0,97239.0,8.57e-05]
[1734868394709,0.80565479,97250.0,97239.0,8.57e-05]
[1734868395717,0.72985479,97250.0,97239.0,8.57e-05]
[1734868396483,0.6319154,97250.0,97239.0,8.57e-05]
[1734868396699,0.6319154,97250.0,97245.0,0.075]
[1734868400105,0.6319154,97250.0,97239.0,8.57e-05]
[1734868402098,0.6319154,97250.0,97235.0,0.0001714]
[1734868402099,0.09793939,97247.0,97235.0,0.0001714]
[1734868402272,0.2743084,97246.0,97235.0,0.0001714]
[1734868403380,0.23154933,97238.0,97235.0,0.0001714]
[1734868403631,0.2743084,97237.0,97235.0,0.0001714]
[1734868404412,0.80093049,97237.0,97235.0,0.0001714]
[1734868406176,0.61570039,97237.0,97236.0,0.0021714]
[1734868406800,0.61570039,97237.0,97236.0,0.0001714]
[1734868407012,0.84724972,97237.0,97236.0,0.0001714]
[1734868407227,0.84724972,97237.0,97236.0,0.0021714]
[1734868408512,0.84724972,97237.0,97236.0,0.0001714]
[1734868408907,0.84824972,97237.0,97236.0,0.0021714]
[1734868409118,0.84824972,97237.0,97236.0,0.0001714]
[1734868409522,0.84724972,97237.0,97236.0,0.0001714]
[1734868409725,0.61670039,97237.0,97236.0,0.0001714]
[1734868412430,0.61670039,97237.0,97236.0,0.0776714]
[1734868412653,0.62694686,97237.0,97236.0,0.0776714]
[1734868412955,0.62694686,97237.0,97236.0,0.08665928]
[1734868413155,0.85843202,97237.0,97236.0,0.0776714]
[1734868414168,0.81213202,97237.0,97236.0,0.0776714]
[1734868416404,0.81230342,97237.0,97236.0,0.0776714]
[1734868416885,0.81230342,97237.0,97236.0,0.0001714]
[1734868417081,0.85860342,97237.0,97236.0,0.0001714]
[1734868417850,0.62711826,97237.0,97236.0,0.0001714]
[1734868422832,0.62711826,97237.0,97224.0,0.064757]
[1734868424464,0.62611826,97237.0,97225.0,0.00900655]
[1734868424664,0.09258822,97228.0,97225.0,0.00900655]
[1734868425013,0.173,97227.0,97224.0,0.064757]
[1734868425996,0.173,97227.0,97224.0,0.06485732]
[1734868426168,0.023,97227.0,97224.0,0.06885732]
[1734868427198,0.173,97230.0,97224.0,0.06885732]
[1734868427532,0.173,97230.0,97224.0,0.06985732]
[1734868428040,0.173,97230.0,97224.0,0.06885732]
[1734868428242,0.09258822,97227.0,97224.0,0.06485732]
[1734868428444,0.173,97226.0,97224.0,0.06585732]
[1734868428685,0.173,97226.0,97224.0,0.06885732]
[1734868428861,0.173,97226.0,97224.0,0.06794302]
[1734868429060,0.173,97226.0,97225.0,0.00900363]
[1734868430025,0.023,97226.0,97225.0,0.00900363]
[1734868430444,0.173,97229.0,97225.0,0.00900363]
[1734868431741,0.173,97229.0,97225.0,0.01100363]
[1734868431945,0.173,97229.0,97224.0,0.06494302]
[1734868432248,0.173,97229.0,97225.0,0.001]
[1734868432670,0.26558822,97229.0,97225.0,0.001]
[1734868434026,0.023,97227.0,97225.0,0.001]
[1734868434439,0.173,97227.0,97225.0,0.001]
[1734868434824,0.26558822,97227.0,97225.0,0.001]
[1734868435023,0.26558822,97227.0,97224.0,0.00018602]
[1734868435346,0.26558822,97227.0,97225.0,0.002]
[1734868435808,0.26558822,97227.0,97224.0,0.00018602]
[1734868436026,0.26558822,97227.0,97225.0,0.002]
[1734868436529,0.26558822,97227.0,97224.0,0.00018602]
[1734868436736,0.26558822,97227.0,97225.0,0.002]
[1734868438118,0.26558822,97227.0,97226.0,0.0089976]
[1734868438480,0.26558822,97227.0,97224.0,0.00218602]
[1734868438677,0.26558822,97227.0,97226.0,0.0089976]
[1734868438882,0.26658822,97227.0,97224.0,0.00018602]
[1734868439087,0.26658822,97227.0,97226.0,0.0089976]
[1734868439285,0.26558822,97227.0,97224.0,0.00018602]
[1734868439574,0.174,97227.0,97226.0,0.0089976]
[1734868439730,0.174,97227.0,97225.0,0.00899863]
[1734868439932,0.175,97227.0,97224.0,0.00018602]
[1734868441299,0.174,97227.0,97224.0,0.00018602]
[1734868441649,0.18547268,97227.0,97224.0,0.00018602]
[1734868441952,0.18447268,97227.0,97224.0,0.00018602]
[1734868442162,0.18547268,97227.0,97224.0,0.00018602]
[1734868443168,0.2780609,97227.0,97224.0,0.00018602]
[1734868443760,0.2550609,97227.0,97225.0,0.00206061]
[1734868443963,0.2550609,97227.0,97226.0,0.12476061]
[1734868444243,0.2550609,97227.0,97226.0,0.13226237]
[1734868444763,0.16247268,97227.0,97226.0,0.13226237]
[1734868444971,0.01047268,97227.0,97226.0,0.13226237]
[1734868445148,0.001,97227.0,97226.0,0.13226237]
[1734868445338,0.002,97227.0,97226.0,0.13226237]
[1734868445799,0.001,97227.0,97226.0,0.13226237]
[1734868446002,0.002,97227.0,97226.0,0.13226237]
[1734868446201,0.001,97227.0,97226.0,0.13226237]
[1734868446363,0.002,97227.0,97226.0,0.13226237]
[1734868446567,0.002,97227.0,97226.0,0.13329078]
[1734868447141,0.002,97227.0,97226.0,0.33459918]
[1734868447343,0.0001714,97237.0,97236.0,0.10206061]
[1734868447455,0.0001714,97237.0,97236.0,0.32606901]
[1734868447661,0.0001714,97237.0,97236.0,0.33407699]
[1734868448898,0.0001714,97237.0,97236.0,0.33707699]
[1734868449937,0.0001714,97237.0,97236.0,0.4755204]
[1734868450236,0.0001714,97237.0,97236.0,0.4765204]
[1734868451081,0.0001714,97237.0,97236.0,0.4735204]
[1734868451287,0.0001714,97237.0,97236.0,0.33507699]
[1734868451466,0.0001714,97237.0,97236.0,0.33807699]
[1734868451817,0.0001714,97237.0,97236.0,0.34007699]
[1734868452780,0.0001714,97267.0,97263.0,0.00206061]
[1734868452915,0.0001714,97267.0,97263.0,0.32776901]
[1734868453120,0.0001714,97267.0,97263.0,0.33574906]
[1734868453772,0.0001714,97267.0,97263.0,0.23444066]
[1734868453973,0.00026039,97264.0,97263.0,0.23444066]
[1734868454394,0.00126039,97264.0,97263.0,0.23444066]
[1734868454600,0.00026039,97264.0,97263.0,0.23444066]
[1734868454798,0.00526039,97264.0,97263.0,0.23444066]
[1734868455030,0.00526039,97264.0,97263.0,0.24144066]
[1734868455237,0.00026039,97264.0,97263.0,0.24144066]
[1734868455580,0.00026039,97264.0,97263.0,0.24544066]
[1734868455938,0.00026039,97264.0,97263.0,0.23844066]
[1734868456152,0.00026039,97264.0,97263.0,0.24344066]
[1734868456582,0.00026039,97264.0,97263.0,0.24744066]
[1734868457500,0.00026039,97264.0,97263.0,0.23844066]
[1734868457702,0.00026039,97264.0,97263.0,0.24344066]
[1734868458046,0.00026039,97264.0,97263.0,0.24744066]
[1734868458470,0.00026039,97264.0,97263.0,0.24344066]
[1734868458677,0.00026039,97264.0,97263.0,0.24744066]
[1734868459075,0.00026039,97264.0,97263.0,0.02098005]
[1734868459459,0.00026039,97264.0,97263.0,0.02304066]
[1734868459832,0.00026039,97264.0,97263.0,0.12304066]
[1734868459986,0.00026039,97264.0,97263.0,0.02304066]
[1734868460593,0.00026039,97264.0,97263.0,0.01404066]
[1734868460795,0.00026039,97264.0,97263.0,0.01204066]
[1734868460997,0.00026039,97264.0,97263.0,0.01304066]
[1734868461194,0.00026039,97264.0,97263.0,0.01104066]
[1734868461396,0.00026039,97264.0,97263.0,0.00898005]
[1734868461611,0.00026039,97264.0,97263.0,0.00998005]
[1734868461968,0.00026039,97264.0,97263.0,0.00798005]
[1734868462171,0.00026039,97264.0,97263.0,0.00898005]
[1734868462308,0.00026039,97264.0,97263.0,0.001]
[1734868462510,0.00026039,97264.0,97263.0,0.00902902]
[1734868463928,0.00026039,97264.0,97263.0,0.00802902]
[1734868464137,0.02426039,97264.0,97260.0,0.1]
[1734868464358,0.02326039,97264.0,97263.0,0.00802902]
[1734868464606,0.00026039,97264.0,97260.0,0.1]
[1734868464807,0.02426039,97264.0,97263.0,0.00802902]
[1734868465336,0.02426039,97264.0,97260.0,0.1]
[1734868465337,0.02526039,97264.0,97258.0,0.00206061]
[1734868465646,0.02426039,97264.0,97258.0,0.00206061]
[1734868465980,0.02426039,97264.0,97259.0,0.00803316]
[1734868466195,0.00026039,97264.0,97259.0,0.00803316]
[1734868466568,0.02426039,97264.0,97259.0,0.00803316]
[1734868466979,0.02526039,97264.0,97259.0,0.00803316]
[1734868467180,0.02426039,97264.0,97259.0,0.00803316]
[1734868467733,0.02526039,97264.0,97259.0,0.00803316]
[1734868467953,0.02426039,97264.0,97259.0,0.00803316]
[1734868468506,0.02526039,97264.0,97259.0,0.00803316]